bitfinex/quotes_ETHUSD_20240926
["timestamp","ask_amount","ask_price","bid_price","bid_amount"]
[1727377437251,0.0381161,2664.2,2664.0,4.30373]
[1727377437418,0.0381161,2664.2,2664.0,8.05738]
[1727377437614,0.0381161,2664.2,2664.0,3.75365]
[1727377437828,0.0381161,2664.2,2664.1,0.62506574]
[1727377438030,0.0381161,2664.2,2664.1,5.09251]
[1727377438257,0.0381161,2664.2,2664.1,5.1675735]
[1727377438903,0.0381161,2664.2,2664.1,5.09251]
[1727377440486,0.0381161,2664.2,2664.1,5.16757049]
[1727377443055,0.0381161,2664.2,2664.1,5.09251]
[1727377443945,0.0381161,2664.2,2664.1,0.55]
[1727377445493,3.7916761,2664.2,2663.6,0.832]
[1727377445797,0.0381161,2664.2,2663.8,3.75395]
[1727377445987,0.0381161,2664.2,2663.6,0.832]
[1727377446187,0.0381161,2664.2,2664.1,4.58561]
[1727377446685,0.0381161,2664.2,2664.1,5.13561]
[1727377447453,0.0381161,2664.2,2664.1,5.21066353]
[1727377447657,0.0381161,2664.2,2664.1,5.13561]
[1727377458190,3.75403,2663.8,2663.3,0.7666]
[1727377458395,0.8265,2664.1,2663.7,3.75403]
[1727377458703,3.7538,2664.0,2663.6,3.75423]
[1727377459068,0.8265,2664.1,2663.6,3.75423]
[1727377459405,0.8265,2664.1,2663.7,3.8291443]
[1727377459606,0.8265,2664.1,2663.7,3.75407]
[1727377459978,0.8265,2664.1,2663.8,0.55]
[1727377460182,4.58013,2664.1,2663.8,0.55]
[1727377460890,0.0381161,2664.2,2663.8,0.55]
[1727377460891,0.0381161,2664.2,2664.0,3.9954908]
[1727377461106,0.0381161,2664.2,2664.1,4.37867042]
[1727377461412,0.0381161,2664.2,2664.1,4.30361]
[1727377462434,0.0381161,2664.2,2664.1,4.37866813]
[1727377462714,0.0381161,2664.2,2664.1,4.30361]
[1727377462870,0.0381161,2664.2,2664.1,5.14526662]
[1727377464976,0.0381161,2664.2,2664.1,5.07021]
[1727377465995,0.0381161,2664.2,2664.1,5.14526308]
[1727377467634,0.0381161,2664.2,2664.1,5.07021]
[1727377474342,0.0381161,2664.2,2664.1,4.30361]
[1727377475829,0.0381161,2664.2,2663.6,3.0]
[1727377475830,0.0381161,2664.2,2663.7,3.0]
[1727377476048,4.55421,2664.1,2663.6,3.75425]
[1727377476339,3.75384,2664.0,2663.5,3.75444]
[1727377476511,3.75384,2664.0,2663.4,3.75454]
[1727377476512,0.8006,2664.1,2663.2,0.7612]
[1727377476715,3.75405,2663.8,2663.4,3.75459]
[1727377477017,0.8006,2663.7,2663.3,3.75473]
[1727377477215,4.55479,2663.7,2663.3,3.75473]
[1727377478137,4.55479,2663.7,2663.1,3.755]
[1727377478340,3.75447,2663.5,2662.9,4.99519]
[1727377478556,0.8006,2663.2,2662.9,1.24]
[1727377478850,0.8006,2663.2,2662.9,4.99526]
[1727377479967,0.8006,2663.2,2663.0,0.55]
[1727377483859,0.8006,2663.2,2663.0,4.30514]
[1727377484258,0.8006,2663.2,2663.0,0.55]
[1727377484791,3.75446,2663.5,2662.9,1.24]
[1727377484792,4.55576,2663.0,2662.9,1.24]
[1727377484950,7.55576,2663.0,2662.9,1.24]
[1727377485357,0.8006,2662.1,2661.7,11.0969]
[1727377485560,0.8006,2662.1,2661.2,20.1812]
[1727377485848,0.8006,2662.1,2661.1,0.0381161]
[1727377486042,4.55703,2662.1,2661.4,3.75742]
[1727377486245,4.55703,2662.1,2661.6,3.75711]
[1727377486452,1.97647208,2662.1,2661.6,3.75711]
[1727377486638,4.55711,2662.1,2661.5,3.75726]
[1727377487076,4.55711,2662.1,2661.6,0.55]
[1727377487280,4.55711,2662.1,2661.6,3.75712]
[1727377487478,5.51115396,2662.1,2661.7,0.55]
[1727377488438,9.26769396,2662.1,2661.5,0.55]
[1727377488639,5.51115396,2662.1,2661.5,0.55]
[1727377488848,5.51115396,2662.1,2661.5,4.30722]
[1727377489064,5.51115396,2662.1,2661.7,0.55]
[1727377489258,0.89566448,2662.0,2661.7,0.55]
[1727377490894,0.89566448,2662.0,2661.7,4.30698]
[1727377491077,0.8006,2662.1,2661.7,4.30698]
[1727377492280,0.8006,2662.1,2662.0,0.55]
[1727377492491,0.8006,2662.1,2662.0,4.30657]
[1727377492889,0.8006,2662.1,2662.0,0.55]
[1727377493403,0.8006,2662.1,2661.8,0.55]
[1727377493562,0.8006,2662.1,2662.0,0.55]
[1727377494364,0.8006,2662.1,2662.0,4.30657]
[1727377494562,0.8323,2663.2,2662.2,0.55]
[1727377494866,0.8323,2663.2,2663.1,3.75502]
[1727377495074,0.8323,2663.2,2663.1,4.30502]
[1727377495672,0.8323,2663.2,2663.0,0.55]
[1727377498074,0.8323,2663.2,2663.0,4.3051]
[1727377499293,0.89770505,2663.9,2663.8,0.55]
[1727377499606,0.8323,2663.9,2663.8,0.55]
[1727377499816,0.8323,2663.9,2663.6,0.55]
[1727377500361,3.75369,2664.1,2663.7,0.55]
[1727377500362,0.8323,2664.1,2663.7,0.55]
[1727377500589,0.8323,2664.1,2663.9,0.55]
[1727377500808,3.7531,2664.5,2663.9,4.30389]
[1727377500976,0.8323,2664.4,2664.1,3.75361]
[1727377501308,0.8323,2664.4,2664.1,4.30361]
[1727377501603,0.8323,2664.4,2664.1,0.55]
[1727377501911,0.8323,2664.4,2663.9,4.30389]
[1727377502404,0.8323,2664.4,2663.9,8.05768]
[1727377502602,0.8323,2664.4,2663.9,4.30379]
[1727377502901,0.8323,2664.4,2663.9,8.05759]
[1727377503516,0.8323,2664.4,2663.9,4.30379]
[1727377503817,0.8323,2664.4,2663.9,8.0576]
[1727377504003,0.8323,2664.4,2664.0,3.75374]
[1727377504178,0.8323,2664.4,2664.1,0.55]
[1727377505515,0.8323,2664.4,2663.8,0.55]
[1727377505675,3.75343,2664.3,2663.8,0.55]
[1727377505873,3.75342,2664.3,2663.8,0.55]
[1727377506078,0.8323,2664.4,2663.9,3.75382]
[1727377506306,0.8323,2664.4,2664.0,0.55]
[1727377507098,0.8323,2664.4,2664.1,4.30361]
[1727377508621,0.8323,2664.4,2664.0,0.55]
[1727377508780,0.8323,2664.4,2664.0,4.30373]
[1727377509819,3.75334,2664.3,2664.0,0.55]
[1727377510036,7.50675,2664.3,2663.8,4.30402]
[1727377510188,3.75334,2664.3,2663.8,4.30402]
[1727377510597,4.58549,2664.4,2663.9,3.75388]
[1727377511202,0.8323,2664.4,2664.1,4.30361]
[1727377511412,4.53935,2664.7,2664.1,4.30361]
[1727377511598,0.7865,2664.7,2664.1,4.36368742]
[1727377511803,0.7865,2664.7,2664.1,5.14478742]
[1727377512295,4.53906,2664.9,2664.1,5.08471]
[1727377512726,0.7865,2664.9,2664.1,5.08471]
[1727377512931,4.53909,2664.9,2664.1,4.30361]
[1727377513238,3.75278,2664.7,2664.1,4.30361]
[1727377513435,3.75294,2664.6,2664.1,4.30361]
[1727377513790,0.7865,2664.4,2664.1,4.30361]
[1727377515507,0.7865,2664.4,2664.1,0.55]
[1727377515917,0.7865,2664.4,2664.1,4.30361]
[1727377516739,0.7865,2664.4,2664.0,0.55]
[1727377516901,0.7865,2664.4,2664.0,4.30374]
[1727377517098,4.5397,2664.4,2664.0,0.55]
[1727377517312,4.5397,2664.4,2663.4,4.57591]
[1727377517313,3.75335,2664.3,2663.6,3.75422]
[1727377517606,7.5068,2664.3,2663.8,3.75398]
[1727377517805,0.42584576,2664.2,2663.8,7.50796]
[1727377517996,0.42584576,2664.2,2663.8,3.75395]
[1727377518433,3.7539,2663.9,2663.3,7.34]
[1727377518736,3.7539,2663.9,2663.2,3.75486]
[1727377518737,3.75439,2663.6,2663.2,3.75486]
[1727377519496,0.7954,2663.7,2663.2,3.75486]
[1727377519694,4.54958,2663.7,2663.2,3.75486]
[1727377519893,4.54958,2663.7,2663.3,0.55]
[1727377520135,5.72448308,2663.7,2663.3,0.55]
[1727377520440,5.72448308,2663.7,2663.3,4.30473]
[1727377520998,0.7954,2663.7,2663.6,3.75431]
[1727377521212,0.7954,2663.7,2663.6,0.55]
[1727377521532,0.7954,2663.7,2663.4,0.55]
[1727377522585,0.7954,2663.7,2663.4,4.30458]
[1727377522900,0.7954,2663.7,2663.4,0.55]
[1727377523097,3.75431,2663.6,2663.2,0.55]
[1727377523329,1.250347,2663.7,2663.2,0.55]
[1727377523514,5.004527,2663.7,2663.2,4.30481]
[1727377524924,5.004527,2663.7,2663.2,0.55]
[1727377525237,5.004527,2663.7,2663.4,0.55]
[1727377525408,0.7954,2663.7,2663.6,0.55]
[1727377525821,0.7954,2664.1,2663.6,4.30431]
[1727377526138,0.7954,2664.1,2663.8,0.55]
[1727377526917,4.54901,2664.1,2663.8,0.55]
[1727377527117,0.83406861,2664.0,2663.7,0.55]
[1727377528431,4.58788861,2664.0,2663.6,0.55]
[1727377529011,3.75404,2663.8,2663.6,0.55]
[1727377529355,3.75404,2663.8,2663.4,0.55]
[1727377529554,3.75404,2663.8,2663.4,4.30453]
[1727377530855,0.7954,2663.7,2663.4,0.55]
[1727377531024,1.22463689,2663.7,2663.4,4.30457]
[1727377531222,0.7954,2663.7,2663.4,4.30457]
[1727377533039,0.7954,2663.7,2663.2,3.55]
[1727377533222,0.7954,2663.7,2663.4,0.55]
[1727377533423,4.54963,2663.7,2663.4,0.55]
[1727377533653,5.43381589,2663.7,2663.4,0.55]
[1727377535233,5.43381589,2663.7,2663.2,4.30486]
[1727377535761,5.43381589,2663.7,2663.4,0.55]
[1727377536318,1.67958589,2663.7,2663.4,4.30459]
[1727377537130,1.67958589,2663.7,2663.4,0.55]
[1727377537665,4.29771059,2663.6,2663.4,0.55]
[1727377537824,3.75434,2663.6,2663.4,0.55]
[1727377538024,3.75445,2663.5,2663.2,0.55]
[1727377538253,3.75445,2663.5,2663.0,3.75514]
[1727377539460,3.75445,2663.5,2663.1,0.55]
[1727377539662,4.584862,2663.5,2663.1,0.55]
[1727377540061,0.830412,2663.5,2663.1,3.75491]
[1727377540235,0.830412,2663.5,2663.2,0.55]
[1727377541044,0.830412,2663.5,2663.2,4.30485]
[1727377541453,4.584882,2663.5,2663.2,0.55]
[1727377541653,0.830412,2663.5,2663.2,0.55]
[1727377543843,4.584962,2663.5,2663.2,0.55]
[1727377544037,8.03402,2663.4,2663.0,0.55]
[1727377544239,3.7551,2663.1,2662.7,3.75547]
[1727377544778,4.586889,2663.1,2662.7,3.75547]
[1727377545122,8.0086308,2663.0,2662.4,3.75598]
[1727377545278,0.831789,2663.1,2662.0,11.0965]
[1727377545279,3.75568,2662.7,2662.2,3.75627]
[1727377545478,0.8079,2662.6,2662.2,3.75622]
[1727377545773,0.8079,2662.6,2662.3,3.75608]
[1727377545989,0.8079,2662.6,2662.2,3.75622]
[1727377546189,3.4454908,2662.5,2661.8,3.75682]
[1727377546478,0.7925,2662.2,2661.8,3.75678]
[1727377546652,0.7925,2662.2,2661.8,3.75676]
[1727377547176,0.7925,2662.2,2661.5,0.8025]
[1727377547177,0.7925,2662.2,2662.0,3.7565]
[1727377547676,0.7925,2663.0,2662.4,3.75594]
[1727377547977,0.7925,2662.6,2662.1,3.75642]
[1727377548354,0.7925,2662.6,2662.2,0.55]
[1727377549550,3.75587,2662.5,2662.2,0.55]
[1727377549978,4.54823,2662.6,2662.2,0.55]
[1727377550181,4.97202908,2662.6,2662.2,0.55]
[1727377550845,3.75593,2662.5,2662.2,0.55]
[1727377551046,3.75593,2662.5,2662.0,4.30657]
[1727377551376,4.97202908,2662.6,2662.0,4.30657]
[1727377551557,4.97202908,2662.6,2662.2,0.55]
[1727377551751,0.84175199,2662.5,2662.2,0.55]
[1727377552650,0.84175199,2662.5,2662.2,4.30617]
[1727377552846,4.97204908,2662.6,2662.2,4.30617]
[1727377553886,0.7925,2662.6,2662.4,0.55]
[1727377554594,0.7925,2662.8,2662.4,4.30593]
[1727377554963,0.7925,2662.8,2662.4,0.55]
[1727377555288,4.54795,2662.8,2662.4,0.55]
[1727377555687,4.54795,2662.8,2662.4,4.30594]
[1727377556055,4.54795,2662.8,2662.3,4.30613]
[1727377556596,4.54795,2662.8,2662.3,0.55]
[1727377556794,4.54795,2662.8,2662.5,0.55]
[1727377557554,0.7925,2662.8,2662.5,0.55]
[1727377557780,0.7925,2663.1,2662.7,0.55]
[1727377557984,3.75517,2663.0,2662.7,0.55]
[1727377558298,3.75517,2663.0,2662.5,0.55]
[1727377558592,7.51047,2663.0,2662.5,0.55]
[1727377558889,3.75531,2662.9,2662.6,0.55]
[1727377559396,4.61992191,2663.0,2662.6,0.55]
[1727377560161,3.75639,2662.2,2661.5,0.8025]
[1727377560315,0.7925,2662.6,2661.9,3.75669]
[1727377560316,3.75616,2662.3,2661.9,3.75669]
[1727377560466,3.75588,2662.5,2662.0,3.7565]
[1727377560806,3.75603,2662.4,2661.9,7.51338]
[1727377560963,3.75603,2662.4,2661.9,3.75669]
[1727377561367,3.75603,2662.4,2661.9,3.75664]
[1727377561606,3.75603,2662.4,2661.9,3.75661]
[1727377562014,3.75603,2662.4,2662.0,0.55]
[1727377563394,7.51212,2662.4,2662.0,0.55]
[1727377563603,3.75603,2662.4,2662.0,0.55]
[1727377563909,3.75627,2662.3,2661.8,4.30681]
[1727377565090,3.75649,2662.1,2661.6,0.55]
[1727377565612,4.56779,2662.2,2661.8,0.55]
[1727377565925,3.75645,2662.1,2661.8,0.55]
[1727377566091,3.75645,2662.1,2661.6,4.30713]
[1727377567313,3.75629,2662.2,2661.9,0.55]
[1727377568194,3.75651,2662.1,2661.7,0.55]
[1727377568518,3.75651,2662.1,2661.2,3.75756]
[1727377568519,3.75716,2661.6,2661.2,3.75756]
[1727377568814,3.75716,2661.6,2661.1,0.0381161]
[1727377568815,3.7577,2661.2,2661.1,0.0381161]
[1727377569722,3.75767,2661.3,2661.1,0.0381161]
[1727377569913,4.56893,2661.4,2661.1,0.0381161]
[1727377570125,5.74610708,2661.4,2661.2,0.55]
[1727377570516,3.75756,2661.3,2661.2,0.55]
[1727377573033,7.2030508,2661.3,2661.2,0.55]
[1727377573340,3.7577,2661.2,2661.1,0.0381161]
[1727377573624,0.8115,2661.4,2661.1,3.7958561]
[1727377573799,3.75723,2661.6,2661.1,3.7958561]
[1727377573999,3.75728,2661.5,2661.1,0.0381161]
[1727377574528,3.75723,2661.6,2661.2,0.55]
[1727377575618,0.8115,2661.7,2661.2,5.09842]
[1727377575837,4.56856,2661.7,2661.2,5.09842]
[1727377576135,3.75744,2661.4,2661.2,0.55]
[1727377576615,3.75738,2661.5,2661.2,0.55]
[1727377576995,7.51445,2661.6,2661.2,0.55]
[1727377577243,3.75722,2661.6,2661.2,0.55]
[1727377577731,7.51447,2661.6,2661.2,0.55]
[1727377578114,3.75749,2661.4,2661.2,0.55]
[1727377579244,3.75756,2661.3,2661.2,0.55]
[1727377579451,3.75749,2661.4,2661.1,0.0381161]
[1727377579452,3.7577,2661.2,2661.1,0.0381161]
[1727377580449,3.75749,2661.4,2661.1,0.0381161]
[1727377580450,3.75756,2661.3,2661.1,0.0381161]
[1727377580615,3.75756,2661.3,2661.2,0.55]
[1727377581548,4.56356,2661.3,2661.2,0.55]
[1727377583707,5.395665,2661.3,2661.2,0.55]
[1727377586255,3.75756,2661.3,2661.2,0.55]
[1727377587846,3.75749,2661.4,2661.2,0.55]
[1727377588710,3.75749,2661.4,2661.2,1.3475]
[1727377589033,7.51504,2661.4,2661.2,1.3475]
[1727377589208,3.75749,2661.4,2661.2,1.3475]
[1727377589855,3.75756,2661.3,2661.2,1.3475]
[1727377590144,3.75744,2661.4,2661.2,1.3475]
[1727377592042,3.75756,2661.3,2661.2,1.3475]
[1727377592251,3.75756,2661.3,2661.2,0.55]
[1727377594238,5.27976,2661.3,2661.2,0.55]
[1727377598853,5.34522343,2661.3,2661.2,0.55]
[1727377599263,3.7577,2661.2,2661.1,0.0381161]
[1727377600636,3.7577,2661.2,2661.1,0.5881161]
[1727377600940,5.01254142,2661.2,2661.1,0.5881161]
[1727377604428,3.7588,2660.5,2659.9,4.57172]
[1727377604630,7.2043208,2660.4,2659.9,0.8122]
[1727377604872,7.2043208,2660.4,2659.6,3.75986]
[1727377604873,7.2043208,2660.4,2659.6,4.57206]
[1727377605966,7.2043208,2660.4,2659.6,4.57204]
[1727377606278,7.2043208,2660.4,2659.7,3.75978]
[1727377606768,7.2043208,2660.4,2659.6,0.8122]
[1727377606769,8.0028208,2660.4,2659.6,0.8122]
[1727377606965,12.17898288,2660.4,2659.5,0.0381161]
[1727377612771,3.75996,2659.6,2659.5,0.0381161]
[1727377612968,4.2439908,2659.6,2659.5,0.0381161]
[1727377613187,8.0039508,2659.6,2659.5,0.0381161]
[1727377614057,8.0039508,2659.6,2659.5,0.5881161]
[1727377615291,3.4454908,2659.6,2659.5,0.5881161]
[1727377616693,7.2054508,2659.6,2659.5,0.5881161]
[1727377617067,7.92599588,2659.6,2659.5,0.5881161]
[1727377617272,8.72449588,2659.6,2659.5,0.0381161]
[1727377617596,11.72449588,2659.6,2659.5,0.0381161]
[1727377618095,12.1172524,2659.6,2659.5,0.0381161]
[1727377620070,1.1133016,2659.6,2659.5,0.5881161]
[1727377620312,3.0,2659.8,2659.6,0.55]
[1727377620511,3.7985,2659.9,2659.6,0.55]
[1727377620828,3.75954,2659.9,2659.6,1.3447]
[1727377621030,7.2049008,2660.0,2659.6,1.3447]
[1727377621400,3.75941,2660.0,2659.6,1.3447]
[1727377621600,3.75955,2659.9,2659.6,1.3447]
[1727377621907,3.75941,2660.0,2659.6,1.3447]
[1727377621908,3.4454908,2660.0,2659.6,1.3447]
[1727377622222,7.2049008,2660.0,2659.6,1.3447]
[1727377622400,10.9643808,2660.0,2659.6,1.3447]
[1727377622601,3.75958,2659.9,2659.6,1.3447]
[1727377623014,7.2049608,2660.0,2659.6,1.3447]
[1727377623923,3.4454908,2660.0,2659.6,1.3447]
[1727377624116,3.75955,2659.9,2659.6,1.3447]
[1727377625433,7.51922,2659.9,2659.6,1.3447]
[1727377625761,3.75969,2659.8,2659.6,1.3447]
[1727377627671,3.75982,2659.7,2659.6,1.3447]
[1727377627904,7.2051808,2659.8,2659.6,1.3447]
[1727377629705,3.75982,2659.7,2659.6,1.3447]
[1727377630283,3.75982,2659.7,2659.6,0.55]
[1727377630490,3.4454908,2659.8,2659.6,0.55]
[1727377630692,7.2051808,2659.8,2659.6,0.55]
[1727377632380,3.75982,2659.7,2659.6,0.55]
[1727377633487,7.2051808,2659.8,2659.6,0.55]
[1727377634455,3.4454908,2659.8,2659.6,0.55]
[1727377634657,3.75954,2659.9,2659.6,0.55]
[1727377635541,3.75883,2660.4,2660.1,0.55]
[1727377635846,3.75865,2660.6,2660.1,0.55]
[1727377636003,3.75892,2660.4,2660.1,0.55]
[1727377636199,3.75911,2660.2,2660.1,0.55]
[1727377636621,3.75926,2660.1,2659.9,0.55]
[1727377636808,3.4454908,2660.0,2659.9,0.55]
[1727377637139,7.92535588,2660.0,2659.5,0.7957161]
[1727377637313,3.75979,2659.8,2659.5,0.7957161]
[1727377639121,3.75979,2659.8,2659.6,0.55]
[1727377641762,7.2053108,2659.7,2659.5,0.0381161]
[1727377641962,3.75996,2659.6,2659.5,0.0381161]
[1727377643261,3.9026698,2659.7,2659.6,0.55]
[1727377643427,4.57163,2659.9,2659.6,0.55]
[1727377643758,3.4454908,2660.3,2659.8,3.75961]
[1727377643922,3.75911,2660.2,2659.9,0.55]
[1727377644624,8.0164408,2660.4,2659.9,0.55]
[1727377644625,11.7753708,2660.4,2659.9,4.30953]
[1727377645319,3.75898,2660.3,2659.9,0.55]
[1727377645735,3.75893,2660.4,2659.9,4.30945]
[1727377645936,3.75875,2660.5,2660.1,0.55]
[1727377646347,3.75862,2660.6,2660.1,4.30924]
[1727377646553,3.75835,2660.8,2660.4,0.7576]
[1727377646723,3.75835,2660.8,2660.5,0.55]
[1727377647126,7.26891457,2661.0,2660.5,0.55]
[1727377647325,3.75826,2660.9,2660.5,0.55]
[1727377648158,7.26891457,2661.0,2660.5,0.55]
[1727377648470,7.2037608,2660.8,2660.5,0.55]
[1727377648636,7.2029808,2661.4,2660.9,0.55]
[1727377648976,7.2029808,2661.4,2660.9,1.3076]
[1727377648977,3.75777,2661.2,2660.9,1.3076]
[1727377649126,7.2032608,2661.2,2660.9,1.3076]
[1727377650951,3.75784,2661.1,2660.9,1.3076]
[1727377651146,3.75784,2661.1,2660.9,0.55]
[1727377651463,3.75845,2660.7,2660.4,0.7812]
[1727377651779,3.75845,2660.7,2659.4,7.2056308]
[1727377651780,3.4454908,2660.5,2660.0,3.75931]
[1727377652068,3.75856,2660.6,2660.1,0.7812]
[1727377652250,7.51719,2660.6,2660.1,0.7812]
[1727377652427,0.7893016,2660.5,2660.1,0.7812]
[1727377653129,0.7893016,2660.5,2660.2,0.55]
[1727377654446,7.2044008,2660.4,2659.9,3.75953]
[1727377654651,8.37963504,2660.4,2659.9,4.54073]
[1727377654861,4.93414424,2660.4,2659.9,4.54073]
[1727377655380,4.134226,2660.7,2660.2,3.75898]
[1727377655531,3.7584,2660.7,2660.3,0.7812]
[1727377655735,3.7584,2660.7,2660.4,0.55]
[1727377655930,3.7584,2660.7,2660.2,0.55]
[1727377655931,3.75869,2660.5,2660.2,0.55]
[1727377656679,7.5798808,2660.6,2660.2,4.30911]
[1727377656847,7.5798808,2660.6,2659.9,0.7812]
[1727377656848,3.75918,2660.2,2659.9,0.7812]
[1727377657182,3.75918,2660.2,2659.7,4.54098]
[1727377657470,7.5184,2660.2,2659.7,4.54098]
[1727377657672,1.09638908,2660.1,2659.7,4.54098]
[1727377658088,1.09638908,2660.1,2659.8,4.30966]
[1727377658871,3.75893,2660.4,2660.0,0.55]
[1727377659383,1.51828808,2660.5,2659.7,4.54091]
[1727377659384,3.75915,2660.2,2659.8,0.55]
[1727377660461,3.75915,2660.2,2659.8,4.30966]
[1727377660756,3.75915,2660.2,2659.8,0.55]
[1727377662187,3.4454908,2660.3,2659.8,4.30965]
[1727377662188,7.2044608,2660.3,2659.8,4.30965]
[1727377663393,8.45262769,2660.3,2659.8,4.30965]
[1727377664175,4.69365769,2660.3,2659.9,3.75946]
[1727377664384,4.69365769,2660.3,2660.0,0.55]
[1727377664581,0.84525777,2660.2,2660.0,0.55]
[1727377665583,0.84525777,2660.2,2659.8,0.55]
[1727377665794,3.75937,2660.1,2659.8,0.55]
[1727377666097,3.4454908,2660.3,2659.8,0.55]
[1727377666098,3.75918,2660.2,2659.8,0.55]
[1727377666612,3.75951,2660.0,2659.6,0.55]
[1727377667101,3.75962,2659.9,2659.6,0.55]
[1727377668156,7.2049008,2660.0,2659.6,4.30994]
[1727377668782,3.75955,2659.9,2659.6,0.55]
[1727377668982,4.56038008,2659.9,2659.6,0.55]
[1727377669513,4.56041008,2659.9,2659.6,0.55]
[1727377672276,8.32006008,2659.9,2659.6,0.55]
[1727377672783,4.56041008,2659.9,2659.6,0.55]
[1727377672990,0.80059009,2659.8,2659.6,0.55]
[1727377675511,4.24608089,2659.8,2659.5,0.0381161]
[1727377675715,7.2054508,2659.6,2659.5,0.0381161]
[1727377679415,7.2054508,2659.6,2659.5,0.5881161]
[1727377679587,8.46237689,2659.6,2659.5,0.5881161]
[1727377686298,4.56029009,2659.8,2659.6,0.55]
[1727377686931,8.32009009,2659.8,2659.6,0.55]
[1727377687235,3.75982,2659.7,2659.6,0.55]
[1727377687399,4.93638009,2659.7,2659.6,0.55]
[1727377689857,3.75982,2659.7,2659.6,0.55]
[1727377692022,3.75982,2659.7,2659.5,0.5881161]
[1727377692023,3.75996,2659.6,2659.5,0.5881161]
[1727377692246,7.9597508,2659.6,2659.5,0.5881161]
[1727377693966,7.9597508,2659.6,2659.5,0.0381161]
[1727377694160,9.50767788,2659.6,2659.5,0.0381161]
[1727377698204,8.75337788,2659.6,2659.5,0.0381161]
[1727377702069,9.53447788,2659.6,2659.5,0.0381161]
[1727377702977,12.53447788,2659.6,2659.5,0.0381161]
[1727377703507,3.0,2659.0,2657.9,0.0381161]
[1727377703678,4.2265908,2658.6,2658.1,3.76196]
[1727377703880,3.0,2658.8,2657.9,0.0381161]
[1727377704091,7.2064508,2658.9,2658.4,3.76158]
[1727377704779,3.4454908,2658.9,2658.2,3.76181]
[1727377704980,8.68140088,2658.9,2658.3,3.76173]
[1727377705298,7.2065208,2658.9,2658.4,0.55]
[1727377706208,10.9675908,2658.9,2658.4,0.55]
[1727377706389,7.2065208,2658.9,2658.4,4.31165]
[1727377706587,7.2065208,2658.9,2658.6,0.55]
[1727377706806,3.76116,2658.8,2658.6,0.55]
[1727377707921,3.76123,2658.7,2658.6,0.55]
[1727377708306,7.2065708,2658.9,2658.6,0.55]
[1727377708880,3.4454908,2658.9,2658.6,0.55]
[1727377709122,3.7611,2658.8,2658.6,0.55]
[1727377710113,3.76123,2658.7,2658.6,0.55]
[1727377713442,4.85801208,2658.7,2658.6,0.55]
[1727377713802,1.09678208,2658.7,2658.1,0.8301]
[1727377714005,3.76174,2658.4,2658.1,0.8301]
[1727377715053,3.76174,2658.4,2658.2,0.55]
[1727377716530,3.7618,2658.3,2658.2,0.55]
[1727377717349,3.76174,2658.4,2658.2,0.55]
[1727377717551,4.93553708,2658.4,2658.2,0.55]
[1727377717751,8.38102788,2658.4,2657.9,0.0381161]
[1727377718090,4.93553708,2658.4,2657.9,3.8004061]
[1727377718214,3.762,2658.2,2657.9,0.0381161]
[1727377718939,7.52406,2658.2,2657.9,0.0381161]
[1727377719153,7.52406,2658.2,2658.0,0.55]
[1727377719154,3.76208,2658.1,2658.0,0.55]
[1727377719328,4.85895508,2658.2,2658.0,0.55]
[1727377719934,3.76208,2658.1,2658.0,0.55]
[1727377720956,1.09695508,2658.2,2658.0,0.55]
[1727377721156,3.76189,2658.3,2658.0,0.55]
[1727377725178,3.76181,2658.3,2658.0,0.55]
[1727377730297,5.35514675,2658.3,2658.0,0.55]
[1727377731158,1.59333675,2658.1,2658.0,0.55]
[1727377734713,3.76222,2658.0,2657.9,0.0381161]
[1727377734869,0.53552868,2658.0,2657.9,0.0381161]
[1727377735290,4.29774868,2658.0,2657.9,0.0381161]
[1727377735964,0.53552868,2658.0,2657.9,0.0381161]
[1727377736166,5.35548675,2658.1,2657.9,0.0381161]
[1727377736375,3.76196,2658.2,2657.9,0.0381161]
[1727377737694,3.76196,2658.2,2658.0,0.55]
[1727377737876,7.52352,2658.4,2658.0,0.55]
[1727377738086,3.76176,2658.4,2658.0,0.55]
[1727377738293,3.76174,2658.4,2658.0,0.55]
[1727377738493,2.39143675,2658.5,2658.1,0.799]
[1727377738494,3.76162,2658.5,2658.1,0.799]
[1727377738809,4.59333675,2658.4,2658.2,0.55]
[1727377739972,3.0,2658.4,2658.2,0.55]
[1727377740170,3.76133,2658.7,2658.2,0.55]
[1727377740377,1.59333675,2659.3,2658.5,0.799]
[1727377740771,1.59333675,2659.3,2658.6,0.55]
[1727377740772,3.76088,2659.0,2658.6,0.55]
[1727377740939,3.76096,2658.9,2658.6,0.55]
[1727377741139,3.76088,2659.0,2658.6,0.55]
[1727377742270,1.59333675,2658.7,2658.4,0.55]
[1727377742433,0.53544268,2658.6,2658.4,0.55]
[1727377742870,4.29683268,2658.6,2658.4,0.55]
[1727377743043,0.53544268,2658.6,2658.4,0.55]
[1727377743749,3.0,2658.5,2657.9,0.8352161]
[1727377744070,3.45208114,2658.1,2657.9,0.0381161]
[1727377744859,7.21424114,2658.1,2657.9,0.0381161]
[1727377745259,3.45208114,2658.1,2657.9,0.0381161]
[1727377746047,3.45208114,2658.1,2658.0,0.55]
[1727377746244,4.84967825,2658.1,2658.0,0.55]
[1727377746882,8.61175825,2658.1,2658.0,0.55]
[1727377747185,4.84967825,2658.1,2658.0,0.55]
[1727377750473,1.39759711,2658.1,2658.0,0.55]
[1727377750981,10.52378,2658.3,2658.0,0.55]
[1727377751202,6.76187,2658.3,2658.0,0.55]